bitfinex/quotes_SOLUSD_20240912
["timestamp","ask_amount","ask_price","bid_price","bid_amount"]
[1726113201945,20.89622329,136.12,136.08,23.1479]
[1726113202153,6.6123,136.11,136.07,6.6141]
[1726113202754,6.6123,136.11,136.06,6.6146]
[1726113203672,6.6123,136.11,136.07,6.6142]
[1726113204049,7.67480756,136.1,136.07,6.6142]
[1726113206561,7.67480756,136.1,136.06,6.6146]
[1726113207166,14.28750756,136.1,136.06,6.6146]
[1726113207606,14.28750756,136.1,136.05,23.1526]
[1726113212301,15.6319,136.08,136.05,16.5374]
[1726113213493,15.6319,136.08,136.05,23.1525]
[1726113214065,15.6319,136.08,136.05,16.5374]
[1726113214271,23.30394784,136.08,136.05,16.5374]
[1726113214769,29.51584784,136.08,136.02,23.1573]
[1726113215670,6.6142,136.07,136.02,23.1573]
[1726113216098,36.12964784,136.08,136.03,6.6161]
[1726113217870,23.30394784,136.08,136.04,16.5386]
[1726113218074,15.6319,136.08,136.04,16.5386]
[1726113219399,15.6319,136.08,136.07,6.6142]
[1726113219780,15.6319,136.08,136.06,6.6146]
[1726113223977,15.6319,136.08,136.05,6.6151]
[1726113224277,15.6319,136.08,136.04,23.1541]
[1726113224999,15.6319,136.08,136.05,6.6151]
[1726113228120,7.67507265,136.1,136.07,6.6142]
[1726113228715,14.28787265,136.1,136.05,6.6151]
[1726113234087,6.6133,136.09,136.05,6.6151]
[1726113234790,6.6133,136.09,136.04,16.5386]
[1726113234791,14.29109534,136.08,136.04,16.5386]
[1726113236614,14.29109534,136.08,136.04,23.1542]
[1726113236800,14.29109534,136.08,136.04,16.5386]
[1726113237002,6.6143,136.07,136.02,6.6166]
[1726113239310,6.6152,136.05,136.01,16.5426]
[1726113240413,6.6152,136.05,136.01,23.1596]
[1726113240716,6.6163,136.03,136.0,0.2656707]
[1726113242629,23.1611,136.03,136.0,0.2656707]
[1726113243333,16.5448,136.03,136.0,0.2656707]
[1726113244624,22.402,136.06,136.0,6.8828707]
[1726113244818,42.402,136.06,136.0,6.8828707]
[1726113245201,7.671885,136.05,136.0,6.8828707]
[1726113247012,6.6157,136.04,136.0,6.8828707]
[1726113247225,7.671885,136.05,136.0,6.8828707]
[1726113248430,14.287085,136.05,136.0,6.8828707]
[1726113250021,6.6159,136.04,136.0,0.2656707]
[1726113252334,6.6159,136.04,136.0,6.8831707]
[1726113255426,7.66897191,136.03,136.0,6.8831707]
[1726113259321,7.66897191,136.03,136.01,6.617]
[1726113260333,7.66897191,136.03,136.0,23.4266707]
[1726113260636,7.66897191,136.03,136.0,16.8090707]
[1726113260933,22.4017,136.06,136.0,16.8090707]
[1726113261232,7.6697706,136.05,136.0,16.8090707]
[1726113262028,7.6697706,136.05,136.01,6.617]
[1726113265112,14.2849706,136.05,136.01,6.617]
[1726113266628,14.2849706,136.05,136.0,23.4265707]
[1726113268232,7.6697706,136.05,136.0,23.4265707]
[1726113268533,6.6158,136.04,136.0,23.4265707]
[1726113271128,6.6153,136.05,136.0,23.4265707]
[1726113271536,7.670441,136.04,136.0,23.4265707]
[1726113272736,7.670441,136.04,136.01,6.6169]
[1726113273059,15.7869,136.06,136.02,6.6162]
[1726113273533,23.46326541,136.06,136.02,6.6162]
[1726113273732,7.67636541,136.06,136.02,6.6162]
[1726113274335,7.67636541,136.06,136.04,6.6155]
[1726113274522,7.67636541,136.06,136.02,16.5409]
[1726113274838,7.67636541,136.06,136.04,6.6156]
[1726113276925,7.67636541,136.06,136.03,6.6161]
[1726113277913,7.67636541,136.06,136.04,6.6156]
[1726113278223,6.6139,136.08,136.02,24.62713631]
[1726113278418,6.6139,136.08,136.02,18.01093631]
[1726113278628,14.29006482,136.08,136.02,18.01093631]
[1726113279044,14.29006482,136.08,136.03,6.6157]
[1726113279946,6.6144,136.07,136.02,16.5409]
[1726113280944,6.6144,136.07,136.02,23.1573]
[1726113282939,6.6147,136.06,136.02,16.5409]
[1726113283247,6.6152,136.05,136.0,6.8831707]
[1726113285155,6.5478,136.07,136.01,6.617]
[1726113285323,6.6147,136.06,136.01,6.617]
[1726113286033,6.6156,136.05,136.0,6.8831707]
[1726113288452,6.6156,136.05,136.01,6.617]
[1726113288956,7.67042059,136.04,136.01,6.617]
[1726113296351,7.67042059,136.04,136.0,0.2656707]
[1726113296352,14.28622059,136.04,136.0,0.2656707]
[1726113296553,7.67042059,136.04,136.0,0.2656707]
[1726113297062,6.6163,136.03,136.0,0.2656707]
[1726113299063,7.67028472,136.02,136.0,0.2656707]
[1726113307576,7.67028472,136.02,136.0,6.8831707]
[1726113307769,22.9326,136.05,136.0,6.8831707]
[1726113307946,22.9326,136.05,136.01,6.617]
[1726113308274,7.66803032,136.04,136.01,6.617]
[1726113309144,7.66803032,136.04,136.0,6.8832707]
[1726113310376,7.66803032,136.04,136.01,6.617]
[1726113314176,7.66803032,136.04,136.02,6.6166]
[1726113314550,9.65317518,136.07,136.02,6.6166]
[1726113314754,7.67386444,136.06,136.02,6.6166]
[1726113314965,7.67386444,136.06,136.03,6.616]
[1726113315552,7.67386444,136.06,136.05,6.6152]
[1726113315756,6.6123,136.11,136.06,6.6146]
[1726113315947,7.67304818,136.09,136.06,6.6146]
[1726113325463,7.67304818,136.09,136.05,6.6151]
[1726113328498,7.67304818,136.09,136.06,6.6147]
[1726113344006,7.67304818,136.09,136.05,23.1524]
[1726113344687,7.67304818,136.09,136.06,6.6146]
[1726113345506,21.8967,136.12,136.07,1.46965738]
[1726113345809,7.66555425,136.11,136.07,1.46965738]
[1726113346281,14.27785425,136.11,136.07,6.614]
[1726113347507,7.66555425,136.11,136.07,6.614]
[1726113350599,14.27785425,136.11,136.07,6.614]
[1726113355420,7.66555425,136.11,136.07,6.614]
[1726113356001,14.27785425,136.11,136.07,6.614]
[1726113356906,6.6133,136.09,136.05,16.5373]
[1726113357326,6.6128,136.1,136.05,23.1523]
[1726113357616,7.66688224,136.09,136.05,23.1523]
[1726113364398,7.66688224,136.09,136.02,16.5411]
[1726113365418,6.6138,136.08,136.03,6.6161]
[1726113365608,6.6142,136.07,136.03,6.6161]
[1726113366598,6.6138,136.08,136.03,6.6161]
[1726113367019,6.6143,136.07,136.02,23.1577]
[1726113367831,6.6143,136.07,136.03,6.6161]
[1726113368125,14.28156666,136.07,136.03,6.6161]
[1726113368509,14.28156666,136.07,136.02,23.1576]
[1726113369220,14.28156666,136.07,136.03,6.6161]
[1726113370024,7.66726666,136.07,136.03,6.6161]
[1726113370941,7.66726666,136.07,136.04,8.08564775]
[1726113371230,6.0795,136.09,136.05,6.615]
[1726113371430,13.75250618,136.09,136.05,6.615]
[1726113371634,20.36580618,136.09,136.05,6.615]
[1726113371936,20.36580618,136.09,136.02,16.5411]
[1726113372108,20.36580618,136.09,136.03,25.24675729]
[1726113372309,20.36580618,136.09,136.04,6.6153]
[1726113374124,13.75250618,136.09,136.03,23.776884]
[1726113374434,13.75250618,136.09,136.05,6.6149]
[1726113374731,20.36580618,136.09,136.04,23.1541]
[1726113375328,13.75250618,136.09,136.05,6.6151]
[1726113376111,7.67300618,136.09,136.05,6.6151]
[1726113376512,7.67300618,136.09,136.04,16.5385]
[1726113376513,14.28630618,136.09,136.04,23.1541]
[1726113376938,6.6139,136.08,136.04,16.5385]
[1726113377414,14.28620618,136.09,136.04,23.154]
[1726113377933,7.67300618,136.09,136.05,6.6151]
[1726113378330,7.67300618,136.09,136.05,8.08484208]
[1726113378715,7.67300618,136.09,136.05,6.6151]
[1726113379031,7.67300618,136.09,136.06,6.6146]
[1726113380316,7.67300618,136.09,136.05,6.6152]
[1726113389042,14.28630618,136.09,136.05,6.6152]
[1726113389223,14.28630618,136.09,136.04,23.154]
[1726113389430,16.4668,136.08,136.01,20.66706756]
[1726113389628,12.6499,136.07,136.02,6.6165]
[1726113390333,7.66255747,136.06,136.02,6.6165]
[1726113390526,7.66255747,136.06,136.03,6.616]
[1726113391333,7.66255747,136.06,136.04,6.6155]
[1726113391645,6.0353,136.07,136.04,6.6155]
[1726113391822,6.0353,136.07,136.03,6.6161]
[1726113392021,13.69670602,136.07,136.03,6.6161]
[1726113393548,13.69670602,136.07,136.04,6.6156]
[1726113396825,7.66140602,136.07,136.05,6.6151]
[1726113397023,16.4668,136.08,136.05,6.6151]
[1726113398732,16.4668,136.08,136.04,6.6156]
[1726113401823,23.0807,136.08,136.03,23.1554]
[1726113403725,16.4668,136.08,136.04,6.6156]
[1726113404330,16.4668,136.08,136.05,6.615]
[1726113404843,7.66332893,136.09,136.05,6.615]
[1726113405436,7.66332893,136.09,136.06,6.6143]
[1726113406258,7.66332893,136.09,136.05,16.5374]
[1726113406259,7.66332893,136.09,136.07,6.6138]
[1726113406447,21.2483,136.11,136.05,16.5374]
[1726113406760,28.91837476,136.11,136.05,16.5374]
[1726113407325,28.91837476,136.11,136.08,6.6137]
[1726113407758,28.91837476,136.11,136.07,6.6142]
[1726113411144,35.53087476,136.11,136.06,6.6146]
[1726113413060,35.53087476,136.11,136.06,8.08431734]
[1726113414340,35.53087476,136.11,136.06,6.6146]
[1726113420266,6.6132,136.09,136.05,16.5374]
[1726113420473,6.6138,136.08,136.02,23.1575]
[1726113420852,6.6142,136.07,136.02,23.1575]
[1726113421054,14.27502202,136.07,136.02,23.1575]
[1726113421552,30.92912202,136.07,136.02,23.1575]
[1726113425311,6.6148,136.06,136.02,16.5413]
[1726113431185,7.66601369,136.05,136.02,16.5413]
[1726113432213,7.66601369,136.05,136.01,6.6171]
[1726113432414,14.28121369,136.05,136.01,6.6171]
[1726113435295,7.66601369,136.05,136.0,0.2656707]
[1726113435485,7.66601369,136.05,136.01,6.6167]
[1726113438899,7.66601369,136.05,136.02,6.6162]
[1726113439493,7.66601369,136.05,136.01,16.5421]
[1726113439898,22.7716,136.07,136.01,16.5421]
[1726113439899,22.7716,136.07,136.03,6.6161]
[1726113440201,30.43493917,136.07,136.03,6.6161]
[1726113441302,30.43493917,136.07,136.04,6.6155]
[1726113441811,30.43493917,136.07,136.05,6.6151]
[1726113441986,7.66333917,136.07,136.03,16.5397]
[1726113442194,7.66333917,136.07,136.04,23.776884]
[1726113442403,18.14623517,136.1,136.06,6.6147]
[1726113442610,7.66142249,136.09,136.06,6.6147]
[1726113443714,7.66142249,136.09,136.05,6.6151]
[1726113444996,14.27472249,136.09,136.04,6.6156]
[1726113445402,6.6138,136.08,136.03,23.1557]
[1726113446815,6.6142,136.07,136.03,23.1557]
[1726113447125,6.6138,136.08,136.03,23.1557]
[1726113452917,7.65815602,136.07,136.03,23.1557]
[1726113455114,7.65815602,136.07,136.05,6.6151]
[1726113455711,15.174,136.1,136.05,6.6151]
[1726113455899,7.64967888,136.08,136.05,6.6151]
[1726113456316,7.64967888,136.08,136.03,16.5397]
[1726113456916,7.64967888,136.08,136.05,6.6151]
[1726113459919,7.64967888,136.08,136.04,6.6156]
[1726113462020,14.26357888,136.08,136.03,23.1557]
[1726113462924,14.26357888,136.08,136.04,6.6156]
[1726113469527,14.26357888,136.08,136.03,16.5397]
[1726113471927,6.6143,136.07,136.03,16.5397]
[1726113472732,7.64947018,136.06,136.03,16.5397]
[1726113472925,14.26417018,136.06,136.02,6.6162]
[1726113475018,6.6152,136.05,136.0,16.8091707]
[1726113476014,6.6152,136.05,136.0,23.4263707]
[1726113480109,6.6152,136.05,136.01,6.6171]
[1726113482937,7.65107125,136.04,136.01,6.6171]
[1726113490441,7.65107125,136.04,136.0,16.8091707]
[1726113490621,7.65107125,136.04,136.03,6.6161]
[1726113490822,16.1336,136.06,136.03,6.6161]
[1726113491025,23.78446575,136.06,136.02,6.6165]
[1726113491936,30.39946575,136.06,136.01,6.617]
[1726113492241,23.78446575,136.06,136.02,6.6166]
[1726113493646,23.78446575,136.06,136.02,16.5411]
[1726113494636,7.65086575,136.06,136.05,6.6152]
[1726113494842,7.65086575,136.06,136.02,18.01111623]
[1726113495147,7.65086575,136.06,136.02,16.5411]
[1726113495349,6.2262,136.07,136.02,16.5411]
[1726113495516,22.6441,136.09,136.02,16.5411]
[1726113495719,7.65211175,136.07,136.03,23.776884]
[1726113497033,7.65211175,136.07,136.04,16.5384]
[1726113497242,16.0308,136.09,136.04,18.00816423]
[1726113497426,16.0308,136.09,136.06,6.6147]
[1726113497626,23.6835525,136.09,136.06,6.6147]
[1726113501840,23.6835525,136.09,136.04,23.1536]
[1726113502726,23.6835525,136.09,136.05,6.615]
[1726113505325,30.2968525,136.09,136.05,6.615]
[1726113505547,30.2968525,136.09,136.04,23.154]
[1726113506947,6.6141,136.08,136.04,16.5384]
[1726113507949,7.64739108,136.07,136.04,16.5384]
[1726113512850,14.26169108,136.07,136.03,6.6161]
[1726113515383,7.64739108,136.07,136.03,6.6161]
[1726113517161,7.64739108,136.07,136.04,6.6155]
[1726113518465,7.64739108,136.07,136.03,16.5398]
[1726113518759,16.0308,136.09,136.04,23.776884]
[1726113518968,23.67855722,136.09,136.04,23.776884]
[1726113520264,23.67855722,136.09,136.05,6.615]
[1726113524666,7.64775722,136.09,136.06,23.776884]
[1726113524856,16.4526103,136.12,136.06,23.776884]
[1726113525262,7.6527068,136.1,136.06,23.776884]
[1726113525467,7.6527068,136.1,136.07,6.6137]
[1726113527348,7.6527068,136.1,136.06,6.6146]
[1726113529270,14.2657068,136.1,136.05,23.1521]
[1726113529569,6.6132,136.09,136.05,16.537]
[1726113530349,6.6138,136.08,136.03,6.6161]
[1726113530550,21.8369,136.08,136.03,6.6161]
[1726113531162,21.8369,136.08,136.04,6.6156]
[1726113531857,6.6142,136.07,136.03,6.6161]
[1726113532070,15.2231,136.08,136.03,6.6161]
[1726113532274,15.2231,136.08,136.02,23.1577]
[1726113532475,6.6143,136.07,136.02,23.1577]
[1726113532646,15.2231,136.08,136.03,6.6161]
[1726113532853,21.8369,136.08,136.03,6.6161]
[1726113535551,7.65159403,136.07,136.03,6.6161]
[1726113536855,14.26589403,136.07,136.03,6.6161]
[1726113539685,7.65159403,136.07,136.03,6.6161]
[1726113546890,14.26579403,136.07,136.03,6.6161]
[1726113547397,7.65159403,136.07,136.03,6.6161]
[1726113548098,7.65159403,136.07,136.02,16.5412]
[1726113549309,14.26589403,136.07,136.02,23.1574]
[1726113552498,14.26589403,136.07,136.03,6.616]
[1726113553189,7.65159403,136.07,136.03,6.616]
[1726113553392,7.65159403,136.07,136.04,8.08563244]
[1726113553595,7.65159403,136.07,136.04,6.6156]
[1726113558103,7.65159403,136.07,136.02,16.5412]
[1726113558302,7.65159403,136.07,136.03,1.46993973]
[1726113558914,7.65159403,136.07,136.04,6.6156]
[1726113560508,7.65159403,136.07,136.04,4.6156]
[1726113560802,7.65159403,136.07,136.02,16.5412]
[1726113561504,7.65159403,136.07,136.03,1.46994072]
[1726113561803,7.65159403,136.07,136.04,6.6156]
[1726113565407,7.65159403,136.07,136.02,23.1574]
[1726113566705,14.26589403,136.07,136.02,23.1574]
[1726113569697,6.6151,136.06,136.02,16.5412]
[1726113569901,7.65159403,136.07,136.02,16.5412]
[1726113571386,14.26589403,136.07,136.02,23.1578]
[1726113574890,6.6148,136.06,136.02,23.1578]
[1726113575304,6.6148,136.06,136.02,16.5412]
[1726113575495,20.36981659,136.05,136.01,6.617]
[1726113577115,15.0906,136.04,136.0,6.8831707]
[1726113585525,15.0906,136.04,136.0,1.73610548]
[1726113585721,15.0906,136.04,136.02,6.6166]
[1726113587997,15.0906,136.04,136.01,6.6171]
[1726113591509,15.0906,136.04,136.0,6.8831707]
[1726113592314,21.7063,136.04,136.0,6.8831707]
[1726113593028,15.0906,136.04,136.0,6.8831707]
[1726113593624,21.7064,136.04,136.0,6.8831707]
[1726113593830,7.69486192,136.03,136.0,6.8831707]
[1726113597633,7.69486192,136.03,136.0,0.2656707]
[1726113597835,6.6171,136.01,136.0,0.2656707]
[1726113598021,12.9117,136.02,136.0,0.2656707]
[1726113601226,22.3889,136.01,136.0,0.2656707]
[1726113601759,15.7718,136.01,136.0,0.2656707]
[1726113604131,23.46318089,136.01,136.0,0.2656707]
[1726113605470,7.69138089,136.01,136.0,0.2656707]
[1726113605616,7.69138089,136.01,136.0,6.8832707]
[1726113605942,22.1707,136.05,136.01,6.6171]
[1726113606109,7.69933974,136.04,136.0,6.8831707]
[1726113607136,7.69933974,136.04,136.01,6.6171]
[1726113608528,7.69933974,136.04,136.0,0.2656707]
[1726113608942,6.6162,136.03,136.0,0.2656707]
[1726113612044,7.69933974,136.04,136.0,0.2656707]
[1726113612249,14.31513974,136.04,136.0,0.2656707]
[1726113614318,7.69933974,136.04,136.0,0.2656707]
[1726113614517,7.69933974,136.04,136.01,6.617]
[1726113625673,7.69933974,136.04,136.02,6.6165]
[1726113627078,7.69933974,136.04,136.03,6.6161]
[1726113627259,6.6138,136.08,136.03,6.6161]
[1726113627469,7.69793824,136.06,136.04,16.5385]
[1726113627850,15.4788,136.09,136.05,6.6151]
[1726113627851,22.092,136.09,136.05,6.6151]
[1726113628156,7.69719677,136.08,136.05,6.6151]
[1726113628748,7.69719677,136.08,136.04,16.5385]
[1726113628749,14.31099677,136.08,136.04,16.5385]
[1726113632778,14.31099677,136.08,136.04,23.1541]
[1726113635778,7.69719677,136.08,136.05,6.615]
[1726113645974,7.69719677,136.08,136.04,23.1541]
[1726113662876,7.69719677,136.08,136.01,16.5424]
[1726113663079,22.73059677,136.08,136.01,16.5424]
[1726113663293,29.34469677,136.08,136.02,6.6162]
[1726113666193,29.34469677,136.08,136.04,6.6156]
[1726113666400,29.34469677,136.08,136.03,6.6161]
[1726113666792,29.34469677,136.08,136.0,6.8831707]
[1726113666793,6.6153,136.05,136.0,6.8831707]
[1726113667503,14.31045212,136.05,136.0,6.8831707]
[1726113667698,6.6158,136.04,136.0,0.2656707]
[1726113668892,6.6162,136.03,136.0,0.2656707]
[1726113669498,21.7329,136.04,136.0,0.2656707]
[1726113669706,15.1172,136.04,136.0,6.8830707]
[1726113669892,21.7329,136.04,136.0,0.2656707]
[1726113673111,15.1172,136.04,136.0,6.8831707]
[1726113677986,7.69773958,136.03,136.0,6.8831707]
[1726113679601,14.31403958,136.03,136.0,0.2656707]
[1726113680425,6.6167,136.02,136.0,0.2656707]
[1726113681616,7.69773958,136.03,136.0,0.2656707]
[1726113682899,14.31393958,136.03,136.0,0.2656707]
[1726113684723,7.69773958,136.03,136.0,6.8831707]
[1726113685999,7.69773958,136.03,136.01,6.6167]
[1726113686393,7.69773958,136.03,136.02,6.6166]
[1726113686598,6.364,136.06,136.02,6.6166]
[1726113686802,22.1106,136.07,136.02,6.6166]
[1726113686986,7.69882451,136.06,136.02,6.6166]
[1726113687192,7.69882451,136.06,136.03,6.616]
[1726113687619,7.69882451,136.06,136.04,6.6156]
[1726113687999,7.69882451,136.06,136.05,6.6152]
[1726113688194,6.3041,136.09,136.05,6.6152]
[1726113688413,14.00151771,136.09,136.05,6.6152]
[1726113688713,7.69741771,136.09,136.05,6.6152]
[1726113689904,7.69741771,136.09,136.06,6.6146]
[1726113704423,7.69741771,136.09,136.08,6.6137]
[1726113704723,2.96159635,136.13,136.08,6.6137]
[1726113704924,7.69473756,136.13,136.06,23.15]
[1726113705122,6.6123,136.11,136.06,23.15]
[1726113705509,6.6123,136.11,136.07,6.6141]
[1726113705934,6.6118,136.12,136.07,6.6141]
[1726113710218,14.30613756,136.13,136.08,6.6137]
[1726113711113,14.30613756,136.13,136.09,6.6131]
[1726113711313,14.30613756,136.13,136.08,6.6137]
[1726113711314,6.6119,136.12,136.08,6.6137]
[1726113712328,14.30603756,136.13,136.09,6.6132]
[1726113713729,7.69473756,136.13,136.09,6.6132]
[1726113716811,14.30613756,136.13,136.08,23.1472]
[1726113722147,7.69473756,136.13,136.09,6.6131]
[1726113724048,14.30633756,136.13,136.08,23.1472]
[1726113734944,22.2875,136.12,136.05,16.5377]
[1726113735141,6.6129,136.1,136.06,6.6147]
[1726113735339,6.6129,136.1,136.05,23.1529]
[1726113735546,14.30924431,136.1,136.05,23.1529]
[1726113736261,14.30924431,136.1,136.06,6.6144]
[1726113736262,7.69634431,136.1,136.06,6.6144]
[1726113739364,15.8814,136.12,136.07,40.311584]
[1726113739872,15.8814,136.12,136.1,6.6127]
[1726113739873,23.57606308,136.12,136.1,6.6127]
[1726113741255,23.57606308,136.12,136.09,6.6131]
[1726113742763,7.69466308,136.12,136.09,6.6131]
[1726113744144,6.6725707,136.15,136.1,6.6127]
[1726113744569,7.6941662,136.14,136.1,6.6127]
[1726113748680,7.6941662,136.14,136.09,16.5325]
[1726113748850,6.6117,136.13,136.09,16.5325]
[1726113749452,6.6117,136.13,136.09,23.1457]
[1726113749773,14.3050662,136.14,136.09,23.1457]
[1726113750291,7.6941662,136.14,136.08,6.6137]
[1726113750459,7.6941662,136.14,136.07,6.6141]
[1726113750460,6.6118,136.12,136.07,6.6141]
[1726113752167,6.6123,136.11,136.07,6.6141]
[1726113752555,6.6123,136.11,136.06,23.1509]
[1726113752763,6.613,136.1,136.06,16.5363]
[1726113752970,16.2528,136.12,136.02,27.5854192]
[1726113753172,16.2528,136.12,136.07,6.6142]
[1726113753499,16.2528,136.12,136.05,16.5372]
[1726113754391,6.6123,136.11,136.06,6.6147]
[1726113754563,6.6128,136.1,136.05,23.1523]
[1726113754968,14.30908755,136.1,136.05,23.1523]
[1726113757265,7.69628755,136.1,136.06,6.6146]
[1726113757471,7.69628755,136.1,136.05,16.5372]
[1726113757673,7.69628755,136.1,136.08,6.6137]
[1726113758183,6.6725707,136.15,136.08,23.776884]
[1726113758363,7.69424667,136.13,136.08,23.776884]
[1726113759187,7.69424667,136.13,136.09,6.6132]
[1726113760596,7.69424667,136.13,136.1,6.6127]
[1726113763583,7.69424667,136.13,136.08,6.6133]
[1726113763788,14.30574667,136.13,136.08,6.6133]
[1726113763964,6.6119,136.12,136.07,23.1485]
[1726113764374,6.6124,136.11,136.07,16.5344]
[1726113764880,22.7956,136.11,136.07,16.5344]
[1726113768712,7.68362885,136.1,136.07,23.1484]
[1726113771911,7.68362885,136.1,136.07,16.5344]
[1726113772887,7.68362885,136.1,136.07,23.1485]
[1726113773507,7.68362885,136.1,136.08,6.6136]
[1726113773798,7.68362885,136.1,136.09,6.6132]
[1726113774003,16.1429,136.14,136.1,6.6123]
[1726113774377,23.82442458,136.14,136.1,6.6123]
[1726113775204,23.82442458,136.14,136.11,6.6122]
[1726113778009,23.79918056,136.14,136.11,6.6122]
[1726113780783,23.79918056,136.14,136.1,6.6126]
[1726113780990,30.40998056,136.14,136.09,23.1451]
[1726113781410,6.6113,136.13,136.09,23.1451]
[1726113781703,6.6113,136.13,136.06,6.2517]
[1726113781704,6.6113,136.13,136.06,16.5363]
[1726113782287,6.6113,136.13,136.08,6.6135]
[1726113784596,7.68246017,136.12,136.08,6.6135]
[1726113798927,7.68246017,136.12,136.09,6.6131]
[1726113805328,7.68246017,136.12,136.11,6.6122]
[1726113805623,16.11765598,136.14,136.11,6.6122]
[1726113807422,16.11765598,136.14,136.1,23.1439]
[1726113816331,7.68164118,136.13,136.1,23.1439]
[1726113824651,7.68164118,136.13,136.11,6.612]
[1726113824832,0.2656707,136.15,136.12,6.6118]
[1726113825254,7.92926281,136.15,136.12,6.6118]
[1726113825941,7.92926281,136.15,136.1,16.5312]
[1726113826521,7.92926281,136.15,136.11,6.612]
[1726113833049,20.85166281,136.15,136.1,23.1439]
[1726113833254,6.6109,136.14,136.1,23.1439]
[1726113833557,22.8812,136.14,136.1,16.5312]
[1726113834130,22.8812,136.14,136.09,6.6132]
[1726113834329,6.6113,136.13,136.08,6.6136]
[1726113834553,6.6123,136.11,136.07,16.5351]
[1726113835551,7.6648257,136.1,136.07,16.5351]
[1726113837956,23.1461257,136.1,136.03,6.616]
[1726113838187,6.6142,136.07,136.02,6.6166]
[1726113838367,6.6154,136.05,136.0,16.8085707]
[1726113838649,29.984884,136.08,136.0,23.4259707]
[1726113838860,20.0,136.07,136.0,0.2656707]
[1726113839453,70.0,136.07,136.0,0.2656707]
[1726113839652,15.4813,136.06,136.0,0.2656707]
[1726113840030,6.6158,136.04,136.0,0.2656707]
[1726113841231,50.0,136.05,136.0,0.2656707]
[1726113841561,20.0,136.04,136.0,0.2656707]
[1726113841748,6.6168,136.02,136.0,0.2656707]
[1726113841958,6.0365,136.03,136.0,0.2656707]
[1726113843054,12.6527,136.03,136.0,0.2656707]
[1726113843371,6.0365,136.03,136.0,0.2656707]
[1726113844258,6.6167,136.02,136.0,0.2656707]
[1726113845990,14.28678665,136.02,136.0,0.2656707]
[1726113846881,22.4047,136.01,136.0,0.2656707]
[1726113847364,15.7876,136.01,135.96,0.2656707]
[1726113848346,22.4048,136.01,135.96,0.2656707]
[1726113850451,22.4048,136.01,135.96,6.8851707]
[1726113851877,15.7876,136.01,135.96,6.8851707]
[1726113852075,15.7876,136.01,135.97,6.619]
[1726113852392,15.7876,136.01,135.97,6.6189]
[1726113852878,7.67008665,136.02,135.98,6.6184]
[1726113853053,7.67008665,136.02,136.01,6.6171]
[1726113853573,7.67008665,136.02,136.0,6.6176]
[1726113854278,7.67008665,136.02,136.01,6.6171]
[1726113854479,16.5643,136.09,136.04,6.6156]
[1726113854783,7.64363643,136.08,136.04,6.6156]
[1726113856858,7.64363643,136.08,136.05,6.6151]
[1726113857890,7.64363643,136.08,136.06,6.6147]
[1726113859976,6.6632707,136.11,136.06,6.6147]
[1726113860178,7.64711285,136.1,136.06,6.6147]
[1726113860978,7.64711285,136.1,136.07,6.6141]
[1726113861485,0.2656707,136.11,136.08,6.6137]
[1726113862578,0.2656707,136.11,136.05,31.07905193]
[1726113862783,0.2656707,136.11,136.05,16.5369]
[1726113863685,6.8779707,136.11,136.06,6.6143]
[1726113866758,6.8779707,136.11,136.06,6.6146]
[1726113867384,0.2656707,136.11,136.07,6.6141]
[1726113871093,0.2656707,136.11,136.08,6.6137]
[1726113873566,0.2656707,136.11,136.09,6.6131]
[1726113873771,0.2656707,136.11,136.07,16.5347]
[1726113874273,0.2656707,136.11,136.08,6.6136]
[1726113874791,7.90500956,136.11,136.08,6.6136]
[1726113877372,7.90500956,136.11,136.07,23.1488]
[1726113878591,14.51730956,136.11,136.06,6.6146]
[1726113878894,6.6129,136.1,136.05,6.6148]
[1726113881287,6.6134,136.09,136.04,23.1542]
[1726113881469,6.6134,136.09,136.05,6.6151]
[1726113881668,6.6133,136.09,136.05,6.6151]
[1726113881866,22.7172,136.1,136.05,6.6151]
[1726113882083,6.6132,136.09,136.04,16.5386]
[1726113882287,16.1044,136.1,136.04,16.5386]
[1726113883167,22.7172,136.1,136.05,6.6148]
[1726113884299,16.1044,136.1,136.06,6.6147]